bitfinex/quotes_ETHUSD_20250529
["timestamp","ask_amount","ask_price","bid_price","bid_amount"]
[1748494460891,4.84782559,2723.3,2722.4,13.30318158]
[1748494461097,4.84781725,2723.3,2722.8,8.0]
[1748494461389,3.67217871,2723.2,2722.7,8.0]
[1748494461681,3.67217871,2723.2,2722.5,8.0]
[1748494461682,3.67245491,2723.0,2722.5,8.0]
[1748494461838,3.70908876,2723.1,2722.5,8.0]
[1748494462039,3.67259156,2722.9,2722.6,0.30661228]
[1748494462382,3.67263495,2722.9,2722.6,0.30661228]
[1748494462876,3.67268098,2722.9,2722.6,0.30661228]
[1748494463077,3.67242012,2723.0,2722.6,0.30661228]
[1748494463290,3.67282476,2722.7,2722.6,0.30661228]
[1748494463475,3.70957467,2722.7,2722.6,0.30661228]
[1748494463677,3.67282476,2722.7,2722.6,0.30661228]
[1748494463878,3.70957467,2722.7,2722.6,0.30661228]
[1748494464198,3.67282476,2722.7,2722.6,0.30661228]
[1748494467355,1.1436,2722.8,2721.9,1.1582]
[1748494467694,1.1436,2722.8,2722.0,0.30667987]
[1748494467895,3.67363432,2722.1,2722.0,0.30667987]
[1748494468252,3.6735311,2722.2,2722.0,0.30667987]
[1748494468454,3.67363432,2722.1,2722.0,0.30667987]
[1748494469472,3.67336443,2722.3,2722.0,0.30667987]
[1748494469682,4.855,2722.4,2722.0,0.30667987]
[1748494469988,4.855,2722.4,2721.4,1.1582]
[1748494469989,3.67371479,2722.1,2721.6,8.0]
[1748494470567,4.855,2722.4,2721.4,1.1582]
[1748494470783,3.67383394,2722.0,2721.4,4.83273541]
[1748494470981,3.67383394,2722.0,2721.4,6.65319136]
[1748494471900,3.67369447,2722.1,2721.4,6.65319136]
[1748494472193,3.67339466,2722.3,2721.6,8.0]
[1748494472960,1.1436,2722.8,2721.6,8.0]
[1748494473183,3.67362727,2722.2,2721.7,0.8]
[1748494474488,1.1436,2722.8,2721.7,4.47411993]
[1748494474686,3.67322666,2722.5,2721.8,3.67399835]
[1748494475090,3.67322666,2722.5,2721.8,8.0]
[1748494475411,3.67328054,2722.4,2721.8,13.72139855]
[1748494475721,3.67331403,2722.4,2721.8,10.04741486]
[1748494475890,1.1436,2722.8,2721.7,0.8]
[1748494476297,3.67330436,2722.4,2721.8,3.67401892]
[1748494476500,3.67313579,2722.5,2721.9,3.67386867]
[1748494476670,1.1746,2723.1,2722.0,8.0]
[1748494476870,4.34849072,2724.3,2722.5,1.1298]
[1748494476871,4.8460763,2723.7,2722.5,1.1298]
[1748494477102,1.1746,2723.7,2722.5,1.1298]
[1748494477307,3.67216046,2723.2,2722.6,0.91298]
[1748494477521,3.67256831,2722.9,2722.6,8.0]
[1748494477819,1.21134991,2723.7,2722.5,2.8068]
[1748494477820,3.67234083,2723.1,2722.5,12.80288334]
[1748494478319,4.84613215,2723.7,2722.7,8.0]
[1748494478515,3.67222353,2723.2,2722.7,8.0]
[1748494478872,4.84613215,2723.7,2722.7,3.67282418]
[1748494478873,3.67206223,2723.3,2722.7,3.67282418]
[1748494479271,1.1746,2723.7,2722.5,1.1298]
[1748494479512,3.67174591,2723.5,2722.7,3.67269746]
[1748494479810,1.1746,2723.7,2722.6,3.67295967]
[1748494479996,3.6716111,2723.6,2722.9,8.0]
[1748494480198,1.1746,2723.7,2722.9,3.67253851]
[1748494480586,1.1746,2723.7,2722.6,8.0]
[1748494480587,3.67236752,2723.1,2722.6,8.0]
[1748494480771,3.70841412,2723.6,2722.6,11.67288895]
[1748494480772,3.67224299,2723.2,2722.6,11.67288895]
[1748494480974,3.67208922,2723.3,2722.5,4.80288447]
[1748494481385,3.67174591,2723.5,2722.8,3.67268313]
[1748494481586,1.2343,2724.3,2723.8,3.67132146]
[1748494481824,3.66939205,2725.3,2723.4,8.0]
[1748494481825,1.2343,2725.3,2723.5,8.0]
[1748494482118,4.843,2725.2,2724.0,3.67105756]
[1748494482522,3.67001494,2724.8,2724.1,4.89458582]
[1748494482737,1.2343,2725.3,2724.1,4.89458582]
[1748494483027,1.2343,2725.3,2724.2,3.67072557]
[1748494483028,3.66988914,2724.9,2724.2,3.67072557]
[1748494483192,3.66988914,2724.9,2724.3,3.67062945]
[1748494483594,8.51065005,2725.1,2724.4,3.67040336]
[1748494483798,3.6698426,2725.0,2724.3,3.67061322]
[1748494484018,3.66988141,2724.9,2724.1,1.71315858]
[1748494484239,3.6700826,2724.8,2724.2,3.67080243]
[1748494484581,4.84,2725.1,2724.1,12.89457871]
[1748494484783,1.2343,2725.3,2724.5,3.67027754]
[1748494485021,6.0733,2725.3,2724.5,3.67027754]
[1748494485190,3.66967006,2725.1,2724.5,3.67027754]
[1748494485395,1.2343,2725.3,2724.5,0.73408796]
[1748494485581,3.66950035,2725.2,2724.6,3.67016774]
[1748494485920,3.66940627,2725.3,2724.2,8.0]
[1748494486221,3.66940627,2725.3,2724.6,3.67013608]
[1748494486383,3.66940627,2725.3,2724.7,3.67006274]
[1748494486720,4.837,2725.5,2724.2,8.0]
[1748494487025,0.03674991,2725.4,2724.3,0.92237]
[1748494487174,3.66971704,2725.1,2724.5,8.0]
[1748494487618,3.66971704,2725.1,2724.5,3.67038563]
[1748494487816,3.66951322,2725.2,2724.2,1.677]
[1748494488181,1.2572,2725.6,2724.5,3.67029774]
[1748494488380,3.66959099,2725.1,2724.6,3.6702242]
[1748494488683,3.66959099,2725.1,2724.5,0.73408572]
[1748494488684,3.66959099,2725.1,2724.5,4.40442718]
[1748494488877,1.2572,2725.6,2724.5,0.73408572]
[1748494489077,1.2572,2725.6,2724.2,8.0]
[1748494489448,3.66975751,2725.0,2724.5,8.0]
[1748494489607,3.66973285,2725.0,2724.5,8.0]
[1748494490089,3.66987907,2724.9,2724.3,3.67060582]
[1748494490719,0.03674991,2724.8,2724.1,2.9007]
[1748494490905,4.82969711,2724.9,2724.1,2.9007]
[1748494491091,3.67016584,2724.7,2724.2,8.0]
[1748494491292,3.67046931,2724.5,2724.1,1.2237]
[1748494491493,3.67046931,2724.5,2724.0,8.0]
[1748494491704,3.67046931,2724.5,2724.0,3.67106628]
[1748494491901,3.67040322,2724.5,2724.1,8.0]
[1748494492219,3.67030017,2724.6,2724.1,8.0]
[1748494492818,0.55,2724.8,2723.5,1.676]
[1748494493118,3.67068709,2724.3,2723.8,8.0]
[1748494493945,0.03674991,2724.2,2723.7,1.1924]
[1748494494101,3.67023937,2724.7,2724.2,8.0]
[1748494495121,3.67023937,2724.7,2724.1,3.67092344]
[1748494495122,1.137,2724.7,2723.7,1.1924]
[1748494495419,3.67074969,2724.3,2723.7,5.78308818]
[1748494495919,3.67043166,2724.5,2723.9,3.67111183]
[1748494495920,3.67039931,2724.5,2723.9,3.67111183]
[1748494496122,3.67039931,2724.5,2723.7,5.78300781]
[1748494496123,3.67055171,2724.4,2723.8,11.6712877]
[1748494496618,3.6699836,2724.9,2723.8,5.46901489]
[1748494496818,4.825,2725.1,2723.8,5.46901489]
[1748494496819,3.67006335,2724.8,2724.2,3.6706979]
[1748494497424,1.1479,2725.5,2724.0,3.67095271]
[1748494497425,0.223,2727.1,2726.9,4.82306784]
[1748494497626,1.97549891,2727.2,2726.9,4.82306784]
[1748494497627,1.78408661,2727.6,2727.2,3.66676444]
[1748494497830,3.8224797,2728.5,2727.5,1.79777695]
[1748494498029,1.1479,2729.2,2727.6,0.30605023]
[1748494498236,1.1479,2729.2,2727.7,1.676]
[1748494498398,3.66449671,2728.9,2727.9,3.66579624]
[1748494498586,4.824,2729.1,2727.9,3.66579624]
[1748494498587,3.66436622,2729.0,2728.0,0.30600535]
[1748494498790,3.66481656,2728.7,2728.0,0.30600535]
[1748494499100,4.823,2728.9,2728.0,0.30600535]
[1748494499997,1.1479,2729.2,2728.0,0.30600535]
[1748494500189,4.823,2729.1,2728.0,0.30600535]
[1748494500387,3.66450481,2728.9,2728.0,0.30600535]
[1748494500591,8.48721857,2729.1,2728.0,8.30600535]
[1748494500833,3.66436098,2729.0,2728.0,0.30600535]
[1748494501247,3.66448019,2728.9,2728.1,8.0]
[1748494501544,3.66436704,2729.0,2728.2,0.30598292]
[1748494502050,0.03674991,2728.9,2728.2,0.30598292]
[1748494502254,3.66496978,2728.6,2728.2,0.30598292]
[1748494502447,3.6651268,2728.5,2728.2,0.30598292]
[1748494502668,3.66525174,2728.4,2728.2,0.30598292]
[1748494503057,3.66505209,2728.5,2728.2,0.30598292]
[1748494503227,4.82,2729.0,2728.2,0.30598292]
[1748494503433,3.66477506,2728.7,2728.2,0.30598292]
[1748494503677,3.66483234,2728.7,2728.2,0.30598292]
[1748494504167,3.66510288,2728.5,2728.2,0.30598292]
[1748494504595,3.66528607,2728.3,2727.5,3.66635044]
[1748494504733,3.66520723,2728.4,2727.5,3.66636113]
[1748494504941,3.66503781,2728.5,2727.7,3.6660842]
[1748494505383,3.66461448,2728.8,2727.3,4.82252149]
[1748494505675,8.0,2729.1,2727.3,4.82252149]
[1748494505676,3.66510496,2728.5,2727.7,3.66597788]
[1748494505884,3.66510496,2728.5,2727.8,3.66591854]
[1748494506032,0.55,2728.9,2727.6,3.66611223]
[1748494506238,3.66532849,2728.3,2727.6,3.66611223]
[1748494506439,4.21453966,2728.9,2727.4,5.32141486]
[1748494506440,3.66526689,2728.4,2727.7,3.6659865]
[1748494506745,3.66553984,2728.2,2727.3,4.82241594]
[1748494506948,3.66553984,2728.2,2727.6,3.6662199]
[1748494507151,3.66553984,2728.2,2727.4,11.66649089]
[1748494507348,3.66553984,2728.2,2727.5,3.66627068]
[1748494507677,3.66553984,2728.2,2727.3,12.82251981]
[1748494507678,1.1947,2729.1,2727.3,1.1559]
[1748494507834,4.814,2728.8,2727.6,3.66615947]
[1748494508034,3.66538721,2728.3,2727.6,3.66615947]
[1748494508327,3.66532956,2728.3,2727.6,3.66617283]
[1748494508585,3.66532956,2728.3,2727.6,3.66618219]
[1748494508788,8.47865706,2728.8,2727.3,12.82247827]
[1748494509095,3.66587232,2727.9,2727.3,1.1559]
[1748494509305,3.66624002,2727.6,2727.0,3.66702682]
[1748494509463,4.813,2728.0,2726.9,1.2198]
[1748494509644,1.214,2728.3,2727.0,1.78978349]
[1748494509845,3.66604313,2727.8,2727.0,1.78978349]
[1748494510045,4.812,2728.4,2727.2,3.66667055]
[1748494510246,3.66565048,2728.1,2727.2,8.0]
[1748494510870,3.66528607,2728.3,2727.2,11.6667111]
[1748494511072,3.66591271,2727.9,2727.2,11.6667111]
[1748494511289,4.811,2728.3,2727.4,3.66647076]
[1748494511506,3.66563464,2728.1,2727.5,1.1616]
[1748494511650,8.47607368,2728.5,2727.5,1.1616]
[1748494511849,3.66579237,2728.0,2727.5,1.1616]
[1748494512044,3.66577488,2728.0,2727.5,9.1616]
[1748494512289,3.66515173,2728.4,2727.5,1.1616]
[1748494512648,3.66591685,2727.9,2727.5,1.1616]
[1748494512964,4.811,2728.5,2727.5,1.1616]
[1748494512965,3.66528607,2728.3,2727.5,1.1616]
[1748494513319,3.66612104,2727.7,2727.5,1.1616]
[1748494513480,3.66588751,2727.9,2727.5,1.1616]
[1748494513959,3.66579368,2728.0,2727.5,1.1616]
[1748494514168,3.66595065,2727.9,2727.5,1.1616]
[1748494516107,1.1726,2727.8,2726.6,1.1783]
[1748494516307,4.83860056,2727.8,2726.6,1.1783]
[1748494516473,4.83860056,2727.8,2726.7,11.66743182]
[1748494516474,3.6664233,2727.5,2726.7,11.66743182]
[1748494516678,3.66649927,2727.4,2726.8,3.66730233]
[1748494517068,3.66637162,2727.5,2726.7,3.66739885]
[1748494517393,3.6662026,2727.7,2727.1,8.0]
[1748494518083,4.806,2728.2,2727.1,8.0]
[1748494518285,3.66619287,2727.7,2727.1,3.66680603]
[1748494518807,4.806,2728.2,2726.9,8.0]
[1748494519103,3.66617369,2727.7,2726.9,11.66715093]
[1748494519267,3.66617369,2727.7,2727.2,3.66675736]
[1748494519466,3.6658559,2727.9,2727.1,11.66678923]
[1748494519903,4.805,2728.1,2727.2,3.66665277]
[1748494520076,3.66559549,2728.1,2727.4,3.66641814]
[1748494520277,4.805,2728.0,2727.4,3.66641814]
[1748494520603,8.46965444,2728.1,2727.4,3.66641814]
[1748494520969,3.66574898,2728.0,2727.4,8.0]
[1748494521166,8.46965741,2728.1,2727.3,3.66658584]
[1748494521473,3.66568914,2728.0,2727.4,3.66647697]
[1748494522077,8.46862679,2728.1,2727.5,3.66630622]
[1748494522280,3.66571945,2728.0,2727.4,3.66643376]
[1748494522609,3.66588014,2727.9,2727.4,8.0]
[1748494523175,3.66588014,2727.9,2727.4,3.66646999]
[1748494523379,3.66598509,2727.8,2727.2,3.66674907]
[1748494523707,4.803,2728.1,2727.3,11.66655882]
[1748494523898,3.66602007,2727.8,2727.3,8.0]
[1748494524893,3.66602007,2727.8,2727.2,8.0]
[1748494525271,3.66602007,2727.8,2727.2,3.66674646]
[1748494525788,3.66588538,2727.9,2727.4,8.0]
[1748494526195,3.66596429,2727.8,2727.4,8.0]
[1748494526415,3.66596429,2727.8,2727.2,3.66669735]
[1748494526570,3.66612114,2727.7,2727.1,3.66688755]
[1748494526777,3.66627133,2727.6,2727.1,3.66688755]
[1748494527028,3.6664284,2727.5,2727.0,8.0]
[1748494527320,3.66642479,2727.5,2726.9,11.6670936]
[1748494527610,3.6664555,2727.5,2726.9,11.6670936]
[1748494527977,3.66652082,2727.4,2726.9,11.6670936]
[1748494528398,1.1956,2727.8,2726.4,5.45817959]
[1748494528399,4.799,2727.6,2726.4,1.1445]
[1748494528598,3.66650458,2727.4,2726.4,1.1445]
[1748494528809,1.1956,2727.8,2726.4,1.1445]
[1748494529130,3.66625899,2727.6,2726.6,5.45789906]
[1748494529433,3.66599509,2727.8,2727.2,3.66666973]
[1748494529709,8.46370548,2728.0,2726.9,12.81157805]
[1748494529710,4.798,2728.0,2726.9,12.81157805]
[1748494530031,3.6663217,2727.6,2727.0,11.66702366]
[1748494530518,4.798,2728.0,2727.0,11.66702366]
[1748494530698,3.66628079,2727.6,2727.0,11.66702366]
[1748494531113,3.66628079,2727.6,2727.1,3.66689612]
[1748494531431,3.66612436,2727.7,2727.1,3.6668015]
[1748494532192,3.66626704,2727.6,2727.1,3.6668015]
[1748494532525,3.66615334,2727.7,2727.1,3.6668015]
[1748494532907,3.66615334,2727.7,2727.2,3.66675354]
[1748494533231,3.66615334,2727.7,2727.1,3.66682622]
[1748494534115,1.1956,2728.2,2727.2,3.66663919]
[1748494534321,3.98922908,2729.7,2727.6,1.1695]
[1748494534322,1.2208,2729.0,2727.6,1.1695]
[1748494534492,1.2208,2729.0,2728.0,3.66557973]
[1748494534891,3.66490097,2728.6,2728.0,3.66557973]
[1748494535432,3.66490097,2728.6,2728.0,3.6656486]
[1748494535787,3.66458951,2728.9,2728.2,3.66531322]
[1748494535993,6.0138,2729.0,2728.2,3.66531322]
[1748494536200,6.0138,2729.0,2727.9,8.0]
[1748494536201,1.2208,2729.0,2727.9,9.79037802]
[1748494536404,3.66225679,2730.6,2728.3,3.66527816]
[1748494536405,4.793,2729.2,2728.3,3.66527816]
[1748494536686,4.793,2729.2,2728.2,1.1725]
[1748494536687,3.66475884,2728.7,2728.2,1.1725]
[1748494536890,0.03674991,2729.1,2728.2,4.83784253]
[1748494537125,3.66421164,2729.1,2728.0,3.66562976]
[1748494537316,3.66421164,2729.1,2727.7,9.2086]
[1748494537517,3.66482976,2728.7,2728.1,8.0]
[1748494537717,1.2275,2729.3,2728.3,3.66525053]
[1748494537918,3.66455671,2728.9,2728.3,3.66525053]
[1748494538094,3.66455671,2728.9,2727.7,9.66565257]
[1748494538095,3.66438179,2729.0,2728.4,3.66514953]
[1748494538329,6.0185,2729.3,2728.4,1.1684]
[1748494538527,3.66429284,2729.1,2728.4,1.1684]
[1748494538836,3.66437491,2729.0,2728.4,4.83349777]
[1748494539068,3.66425526,2729.1,2728.5,3.66501648]
[1748494539264,1.2275,2729.3,2728.4,1.1684]
[1748494539474,4.89144773,2729.3,2728.5,3.66491158]
[1748494539683,0.32579935,2729.7,2728.7,9.2305]
[1748494539837,0.32579935,2729.7,2729.4,3.66380889]
[1748494540031,0.32579935,2729.7,2729.6,11.66354044]
[1748494542331,0.32579935,2729.7,2729.6,1.1599]
[1748494542536,0.32579935,2729.7,2729.4,8.0]
[1748494542731,0.32579935,2729.7,2729.5,3.66358718]
[1748494542933,0.32579935,2729.7,2729.4,1.16638335]
[1748494543276,0.32579935,2729.7,2729.5,8.0]
[1748494543443,0.32579935,2729.7,2729.5,3.66358867]
[1748494543841,0.32579935,2729.7,2729.3,1.1599]
[1748494544174,0.32579935,2729.7,2729.0,1.1403]
[1748494544473,3.6640358,2729.3,2728.5,3.6650146]
[1748494544670,3.66367466,2729.5,2728.6,5.35064096]
[1748494544873,3.66394919,2729.3,2728.7,3.66474878]
[1748494545098,0.32579935,2729.7,2728.7,3.66474878]
[1748494545099,3.66387277,2729.4,2728.7,8.0]
[1748494545370,3.66399571,2729.3,2728.7,4.2750052]
[1748494545934,3.66396735,2729.3,2728.7,0.61026451]
[1748494546135,3.66398153,2729.3,2728.7,0.61026451]
[1748494546573,0.32579935,2729.7,2729.1,3.66412868]
[1748494546870,0.32579935,2729.7,2729.0,3.66432581]
[1748494547034,0.32579935,2729.7,2728.9,11.66440209]
[1748494547373,0.32579935,2729.7,2728.9,3.6643747]
[1748494547374,3.66356651,2729.6,2728.9,3.6643747]
[1748494547550,0.32579935,2729.7,2728.7,10.40064253]
[1748494547751,0.32579935,2729.7,2728.8,1.15409425]
[1748494547943,3.66354196,2729.6,2729.0,3.66429381]
[1748494548144,3.66354196,2729.6,2729.0,8.0]
[1748494548382,3.66372478,2729.5,2729.0,8.0]
[1748494549071,3.66359178,2729.6,2729.0,3.66432873]
[1748494549372,3.98923285,2729.7,2728.9,3.6644624]
[1748494549373,3.66375315,2729.5,2728.9,3.6644624]
[1748494549671,0.32579935,2729.7,2729.1,3.6640901]
[1748494549856,0.32579935,2729.7,2729.1,11.6640901]
[1748494550059,3.98923085,2729.7,2729.1,11.6640901]
[1748494550244,3.98921474,2729.7,2729.2,3.66405567]
[1748494550449,3.66354046,2729.6,2729.1,8.49192012]
[1748494550652,3.66354044,2729.6,2728.9,9.88839425]
[1748494550960,3.66374677,2729.5,2728.9,5.55282368]
[1748494551339,3.66355423,2729.6,2728.9,1.88839425]
[1748494551534,3.66355423,2729.6,2728.8,11.66455797]
[1748494551535,3.66389032,2729.4,2728.8,11.66455797]
[1748494552566,3.6639646,2729.3,2728.7,11.66470424]
[1748494552871,4.778,2729.5,2728.6,1.1403]
[1748494553075,3.6642911,2729.1,2728.6,1.1403]
[1748494553234,3.66412431,2729.2,2728.6,4.80516888]
[1748494553434,3.70105846,2729.1,2728.3,1.1881]
[1748494553640,3.66471617,2728.8,2727.7,1.79037802]
[1748494553882,3.6645857,2728.9,2728.4,8.0]
[1748494554073,3.6645857,2728.9,2728.2,3.66529157]
[1748494554074,3.66457101,2728.9,2728.2,3.66529157]
[1748494554274,3.66457101,2728.9,2728.3,3.66515933]
[1748494555183,4.775,2729.1,2727.9,1.1881]
[1748494555349,3.66466312,2728.8,2728.3,8.0]
[1748494556164,3.66450372,2728.9,2728.3,3.6652206]
[1748494556478,8.43925083,2729.1,2728.4,3.66511367]
[1748494556479,3.66438562,2729.0,2728.4,3.66511367]
[1748494556846,3.66452074,2728.9,2728.4,8.0]
[1748494557441,3.66464577,2728.8,2728.4,8.0]
[1748494557868,3.66464577,2728.8,2728.3,0.99899378]
[1748494558143,3.66463892,2728.8,2728.3,3.66522126]
[1748494559240,3.66463892,2728.8,2728.2,8.0]
[1748494559241,3.66463892,2728.8,2728.2,11.66536167]
[1748494559441,3.66463892,2728.8,2728.2,8.0]
[1748494560081,3.66453131,2728.9,2728.3,3.66521186]
[1748494560382,3.66328339,2728.9,2728.3,3.66521186]
[1748494560584,4.77,2729.0,2728.5,3.66490301]
[1748494560890,3.66437951,2729.0,2728.1,8.0]
[1748494561095,3.66444599,2729.0,2728.4,3.66510689]
[1748494561389,3.66450391,2728.9,2728.4,3.66510689]
[1748494561587,3.66445541,2729.0,2728.4,3.66510689]
[1748494562084,3.66445541,2729.0,2728.5,3.66501301]
[1748494562085,8.43335173,2729.0,2728.5,3.66501301]
[1748494562276,8.43335173,2729.0,2728.3,3.66518839]
[1748494562277,8.43335173,2729.0,2728.4,3.66509336]
[1748494562471,4.769,2729.0,2728.4,3.66509336]
[1748494562988,8.43234591,2729.0,2728.4,3.66509336]
[1748494563179,8.43234591,2729.0,2728.5,3.66496205]
[1748494563180,3.66434591,2729.0,2728.5,3.66496205]
[1748494563386,1.2003,2729.4,2728.5,3.66496205]
[1748494563387,4.86414458,2729.4,2728.6,3.66486708]
[1748494563584,1.2003,2729.4,2728.8,3.66452898]
[1748494563898,3.66387686,2729.4,2728.8,3.66452898]
[1748494564402,3.66394313,2729.3,2728.8,8.0]
[1748494564554,5.2160466,2729.7,2728.7,8.0]
[1748494564760,3.66433359,2729.1,2728.7,1.13572117]
[1748494564960,3.66433359,2729.1,2728.6,1.1495]
[1748494565695,3.66467783,2728.8,2728.3,1.2467]
[1748494566107,3.66467783,2728.8,2728.3,4.91196104]
[1748494566256,3.66464535,2728.8,2728.3,1.2467]
[1748494566453,4.766,2729.1,2728.4,3.66515173]
[1748494566657,3.66437749,2729.0,2728.5,3.6650174]
[1748494566898,8.43027812,2729.1,2728.5,3.6650174]
[1748494567197,3.66418576,2729.2,2728.6,3.66479998]
[1748494567358,8.42818576,2729.2,2728.6,3.66483446]
[1748494567681,4.764,2729.2,2728.6,3.6648054]
[1748494567886,4.764,2729.2,2728.4,8.0]
[1748494568193,4.764,2729.2,2728.4,11.66504825]
[1748494568194,3.66441296,2729.0,2728.4,11.66504825]
[1748494568759,3.66450107,2728.9,2728.3,9.2467]
[1748494568962,4.764,2729.2,2728.3,9.2467]
[1748494568963,8.42807887,2729.2,2728.6,8.0]
[1748494569298,3.66429327,2729.1,2728.6,8.0]
[1748494569470,3.66427091,2729.1,2728.6,8.0]
[1748494569797,8.42807887,2729.2,2728.3,1.2467]
[1748494569798,4.764,2729.2,2728.3,1.2467]
[1748494570096,8.42813616,2729.2,2728.6,3.66479936]
[1748494570399,3.66410121,2729.2,2728.7,3.66466666]
[1748494570571,8.42530036,2729.1,2728.6,8.0]
[1748494570967,0.36,2729.6,2728.7,1.2449]
[1748494571163,0.32579935,2729.7,2729.0,1.78919209]
[1748494571363,0.32579935,2729.7,2729.3,3.66389431]
[1748494571569,0.32579935,2729.7,2728.9,8.0]
[1748494571796,0.32579935,2729.7,2729.2,3.66401731]
[1748494571997,3.98925316,2729.7,2729.1,11.66416038]
[1748494572266,3.98925316,2729.7,2729.1,11.66412537]
[1748494572482,0.32579935,2729.7,2729.4,8.0]
[1748494572684,0.32579935,2729.7,2729.6,8.0]
[1748494572901,0.32579935,2729.7,2729.4,3.6637718]
[1748494573229,0.32579935,2729.7,2729.3,1.262]
[1748494573586,3.98924843,2729.7,2729.1,11.6641327]
[1748494573927,3.98924843,2729.7,2729.0,8.0]
[1748494573928,3.66376907,2729.5,2729.0,8.0]
[1748494574080,3.66376907,2729.5,2728.6,2.77030329]
[1748494574081,5.08379935,2729.7,2728.6,2.77030329]
[1748494574261,3.66382683,2729.4,2728.9,8.0]
[1748494574458,3.66371603,2729.5,2728.9,11.66440696]
[1748494574696,3.66362204,2729.6,2729.0,3.66431384]
[1748494574899,3.66368129,2729.5,2728.9,11.66442672]
[1748494575106,5.08279935,2729.7,2728.6,1.2373]
[1748494575315,5.30202985,2729.6,2728.8,3.66461364]
[1748494575620,5.30202985,2729.6,2729.0,8.0]
[1748494575621,3.66382233,2729.4,2729.0,8.0]
[1748494575778,3.66401942,2729.3,2728.9,8.0]
[1748494575997,3.66392638,2729.4,2728.6,1.2373]
[1748494576204,4.22279352,2729.5,2728.9,8.0]
[1748494576405,0.55910793,2729.5,2728.7,8.0]
[1748494576639,3.66370704,2729.5,2728.9,8.0]
[1748494576839,3.66370704,2729.5,2728.9,11.66447222]
[1748494576994,8.9288454,2729.6,2728.9,8.0]
[1748494577193,0.32579935,2729.7,2728.9,8.0]
[1748494577194,4.755,2729.5,2729.0,3.66426539]
[1748494577793,3.66354908,2729.6,2728.8,3.66461448]
[1748494577794,3.66354075,2729.6,2728.8,3.66461448]
[1748494578000,0.32579935,2729.7,2728.7,0.92373]
[1748494578001,8.74325145,2729.7,2729.1,1.2221]
[1748494578234,5.07979935,2729.7,2729.1,1.2221]
[1748494578532,3.66374187,2729.5,2728.8,1.148]
[1748494578736,3.70049178,2729.5,2728.9,3.66438533]
[1748494578921,3.66374187,2729.5,2728.9,3.66438533]
[1748494579103,5.07979935,2729.7,2728.8,1.148]
[1748494579293,3.66389518,2729.4,2728.8,4.81258077]
[1748494579812,4.17162042,2729.6,2728.9,3.66447639]
[1748494579813,3.66367466,2729.5,2728.9,3.66447639]
[1748494580011,4.17154284,2729.6,2728.9,3.66447639]
[1748494580012,3.66383037,2729.4,2728.9,3.66447639]
[1748494580223,0.32579935,2729.7,2728.8,1.148]
[1748494580395,3.66394918,2729.3,2728.8,1.148]
[1748494580589,3.66386533,2729.4,2728.8,1.148]
[1748494581091,0.32579935,2729.7,2728.8,1.148]
[1748494581289,0.32579935,2729.7,2729.2,3.66402378]
[1748494581521,0.32579935,2729.7,2729.4,3.66369947]
[1748494581713,0.32579935,2729.7,2729.2,3.66403382]
[1748494581714,0.32579935,2729.7,2729.3,3.66388039]
[1748494582117,0.32579935,2729.7,2729.3,3.66392216]
[1748494582503,0.32579935,2729.7,2729.2,3.66403985]
[1748494582931,3.98922963,2729.7,2729.1,3.66412036]
[1748494583510,3.66359493,2729.6,2729.1,3.66412036]
[1748494583710,3.66359493,2729.6,2728.9,8.0]
[1748494583711,3.66358742,2729.6,2728.9,8.0]
[1748494583915,3.66376333,2729.5,2728.9,11.66439646]
[1748494584118,3.70031727,2729.6,2728.9,11.66439646]
[1748494584299,3.66387768,2729.4,2728.9,8.0]
[1748494584502,3.6639825,2729.3,2728.8,4.81257233]
[1748494584705,3.66398785,2729.3,2728.5,1.2078]
[1748494584904,3.70062413,2729.4,2728.7,8.0]
[1748494585099,4.92265907,2729.4,2728.8,3.66460272]
[1748494585603,4.92265907,2729.4,2728.7,3.66472751]
[1748494585808,3.6639481,2729.3,2728.7,11.66461457]
[1748494586119,4.92265392,2729.4,2728.8,3.6646107]
[1748494586762,3.66396248,2729.3,2728.8,3.6646107]
[1748494587039,2.50668485,2729.4,2728.6,8.0]
[1748494587238,6.17050736,2729.4,2728.9,3.66440366]
[1748494588124,6.17050736,2729.4,2728.8,3.66455258]
[1748494588737,6.17050736,2729.4,2728.9,3.66445905]
[1748494588915,6.17050736,2729.4,2728.8,3.66451711]
[1748494589247,6.17050736,2729.4,2728.7,3.66464236]
[1748494589248,3.66396342,2729.3,2728.7,3.66469199]
[1748494589408,3.66396342,2729.3,2728.8,3.66459382]
[1748494589609,6.17053777,2729.4,2728.7,8.0]
[1748494589815,4.256135,2729.3,2728.7,3.66467949]
[1748494590015,3.66416622,2729.2,2728.5,1.2078]
[1748494590216,4.25612248,2729.3,2728.5,4.87269738]
[1748494590461,4.25612248,2729.3,2728.5,1.2078]
[1748494590462,0.59208681,2729.3,2728.5,1.2078]
[1748494590642,3.6639784,2729.3,2728.8,3.66450608]
[1748494590846,3.66414415,2729.2,2728.6,3.66478892]
[1748494591165,0.03674991,2729.2,2727.9,1.2386]
[1748494591366,3.66467148,2728.8,2728.3,3.66527523]
[1748494591669,4.741,2729.1,2728.3,3.66527523]
[1748494591670,3.6645045,2728.9,2728.3,3.66527523]
[1748494592050,3.98920971,2729.7,2728.8,4.91041448]
[1748494592246,0.32579935,2729.7,2728.9,8.0]
[1748494592431,3.66367132,2729.6,2728.9,11.66444108]
[1748494592766,0.32579935,2729.7,2729.3,3.66393462]
[1748494592915,0.32579935,2729.7,2728.8,1.2458]
[1748494593120,3.98927471,2729.7,2729.1,3.66410987]
[1748494593333,3.66356854,2729.6,2729.1,3.66410987]
[1748494593520,8.72823858,2729.7,2729.2,3.66407287]
[1748494593722,8.72823858,2729.7,2729.1,3.66416539]
[1748494594064,5.06479935,2729.7,2729.2,3.66395613]
[1748494594262,5.06479935,2729.7,2728.8,1.2458]
[1748494594424,5.93759313,2729.7,2728.8,1.2458]
[1748494594623,3.66414893,2729.2,2728.4,1.2604]
[1748494594853,4.737,2729.2,2728.4,1.2604]
[1748494595022,4.737,2729.2,2727.8,5.45504416]
[1748494595023,3.66468689,2728.8,2728.2,3.66541882]
[1748494595223,3.66468689,2728.8,2728.3,8.0]
[1748494595438,9.64177978,2729.2,2728.4,3.66513748]
[1748494595765,1.2406,2729.6,2728.3,8.0]
[1748494596066,3.66418056,2729.2,2728.6,3.66486015]
[1748494596438,3.66418056,2729.2,2728.4,5.41250961]
[1748494596439,3.66418056,2729.2,2728.5,3.66500994]
[1748494596642,3.66418056,2729.2,2728.6,3.66485029]
[1748494596848,4.736,2729.5,2728.6,3.66485029]